bitfinex/quotes_SOLUSD_20251119
["timestamp","ask_amount","ask_price","bid_price","bid_amount"]
[1763569551412,5.4398901,134.27,134.26,64.70593088]
[1763569551704,9.850953,134.27,134.26,64.03593088]
[1763569551885,5.4398901,134.27,134.26,64.03593088]
[1763569552085,15.2908431,134.27,134.26,64.03593088]
[1763569552289,9.850953,134.27,134.26,1.93593088]
[1763569552618,15.2914648,134.27,134.26,1.93593088]
[1763569552822,5.4405118,134.27,134.26,1.93593088]
[1763569552984,9.850953,134.27,134.26,1.93593088]
[1763569553185,15.2914648,134.27,134.26,1.93593088]
[1763569553883,9.850953,134.27,134.26,64.03593088]
[1763569554294,1.8,134.27,134.26,64.03593088]
[1763569554501,17.08701697,134.27,134.26,64.03593088]
[1763569555606,1.8,134.29,134.26,2.60593088]
[1763569555792,15.28784406,134.28,134.26,2.60593088]
[1763569555980,9.850953,134.27,134.26,2.60593088]
[1763569556180,9.850953,134.27,134.26,1.93593088]
[1763569557001,9.850953,134.27,134.26,2.60593088]
[1763569557404,9.850953,134.27,134.26,1.93593088]
[1763569557993,1.8,134.29,134.26,1.93593088]
[1763569558309,9.850953,134.27,134.26,1.93593088]
[1763569558496,1.8,134.29,134.26,1.93593088]
[1763569558696,9.850953,134.27,134.26,1.93593088]
[1763569559210,18.80096,134.31,134.26,1.93593088]
[1763569559211,19.92096,134.32,134.26,2.60593088]
[1763569559413,9.850953,134.29,134.27,0.67]
[1763569559988,9.850953,134.28,134.27,0.67]
[1763569560199,9.850953,134.28,134.26,1.93593088]
[1763569560509,9.850953,134.27,134.26,1.93593088]
[1763569560696,2.48,134.28,134.26,1.93593088]
[1763569560899,9.850953,134.27,134.26,1.93593088]
[1763569561212,15.96770642,134.27,134.26,1.93593088]
[1763569561590,34.08866642,134.27,134.26,1.93593088]
[1763569561803,38.98218633,134.27,134.26,1.93593088]
[1763569562005,48.77101402,134.27,134.23,62.1]
[1763569562211,9.850953,134.24,134.23,62.1]
[1763569562404,35.20866642,134.24,134.2,62.2]
[1763569562606,27.971913,134.21,134.2,0.1]
[1763569562822,33.40866642,134.21,134.2,0.1]
[1763569562985,43.93961942,134.21,134.17,62.2]
[1763569563186,9.850953,134.18,134.17,0.1]
[1763569563413,33.3928673,134.18,134.17,0.1]
[1763569563729,34.0228673,134.18,134.17,0.1]
[1763569564015,35.1928673,134.18,134.17,0.1]
[1763569564315,35.8228673,134.18,134.17,0.1]
[1763569565188,45.61169499,134.18,134.17,0.1]
[1763569565615,27.49073499,134.18,134.17,0.1]
[1763569565790,27.49073499,134.18,134.15,0.1]
[1763569565791,18.12096,134.17,134.15,0.1]
[1763569565990,17.0719073,134.16,134.15,0.1]
[1763569566307,2.43,134.2,134.15,0.1]
[1763569566506,9.850953,134.16,134.15,0.1]
[1763569567021,1.8,134.2,134.15,0.77]
[1763569567190,9.850953,134.17,134.15,0.77]
[1763569567905,9.850953,134.18,134.15,0.77]
[1763569568095,9.850953,134.17,134.15,0.77]
[1763569568506,9.850953,134.16,134.15,0.77]
[1763569568810,9.850953,134.17,134.15,0.77]
[1763569569205,9.850953,134.16,134.15,0.1]
[1763569569594,12.280953,134.16,134.15,0.1]
[1763569569910,2.43,134.16,134.15,0.1]
[1763569570113,12.280953,134.16,134.15,0.1]
[1763569570308,30.401913,134.16,134.15,0.1]
[1763569570506,20.55096,134.16,134.15,0.1]
[1763569570716,35.79199496,134.16,134.15,0.1]
[1763569570901,9.78882769,134.15,134.14,0.1]
[1763569571105,25.02987664,134.15,134.13,0.1]
[1763569571290,9.78882769,134.13,134.12,0.1]
[1763569571487,9.78882769,134.13,134.01,12.94194264]
[1763569571488,9.850953,134.03,134.01,0.77]
[1763569571834,9.850953,134.05,134.02,0.67]
[1763569572001,19.92096,134.08,134.02,0.67]
[1763569572194,1.8,134.08,134.02,0.67]
[1763569572432,9.850953,134.04,134.02,0.67]
[1763569572594,1.8,134.08,134.02,0.67]
[1763569573114,1.8,134.08,134.01,0.1]
[1763569573115,0.53,134.07,134.01,0.1]
[1763569573501,18.12096,134.06,134.01,0.1]
[1763569573709,9.850953,134.04,134.01,0.77]
[1763569573909,9.850953,134.03,134.01,0.77]
[1763569574115,18.12096,134.06,134.01,0.77]
[1763569574416,9.850953,134.04,134.01,0.77]
[1763569574800,18.12096,134.06,134.01,0.77]
[1763569575118,18.12096,134.1,134.02,9.850953]
[1763569575304,9.850953,134.08,134.03,9.850953]
[1763569575711,9.850953,134.07,134.0,19.26250202]
[1763569575917,19.92096,134.1,134.01,9.78882769]
[1763569576123,9.850953,134.06,134.02,9.850953]
[1763569576320,1.8,134.1,134.03,9.850953]
[1763569576501,2.48,134.15,134.07,9.850953]
[1763569576702,1.8,134.15,134.06,9.850953]
[1763569576931,9.850953,134.11,134.07,0.67]
[1763569577136,9.850953,134.1,134.07,0.67]
[1763569577324,9.850953,134.11,134.07,0.67]
[1763569577509,9.850953,134.09,134.07,0.67]
[1763569578110,0.68,134.14,134.07,0.67]
[1763569578111,9.850953,134.08,134.07,0.67]
[1763569578329,0.68,134.14,134.07,0.67]
[1763569578516,19.92096,134.15,134.07,0.67]
[1763569578517,9.850953,134.09,134.07,0.67]
[1763569578714,18.12096,134.12,134.07,0.67]
[1763569578921,9.850953,134.09,134.07,0.67]
[1763569580214,0.72,134.17,134.07,17.97955123]
[1763569580530,9.850953,134.14,134.09,9.850953]
[1763569580710,1.82,134.19,134.1,0.66]
[1763569580910,9.850953,134.14,134.1,0.66]
[1763569581309,1.82,134.19,134.1,0.66]
[1763569581635,0.72,134.2,134.11,9.78882769]
[1763569581806,9.850953,134.19,134.11,9.78882769]
[1763569582010,9.850953,134.19,134.14,9.850953]
[1763569582211,1.82,134.25,134.16,9.850953]
[1763569582435,1.82,134.25,134.18,9.850953]
[1763569582734,0.72,134.27,134.16,9.78882769]
[1763569582735,9.850953,134.23,134.16,9.78882769]
[1763569582941,9.850953,134.23,134.18,9.850953]
[1763569583310,9.850953,134.23,134.19,0.66]
[1763569583746,9.850953,134.22,134.19,0.66]
[1763569583936,18.84096,134.27,134.19,0.66]
[1763569584120,9.850953,134.26,134.2,7.45122142]
[1763569584321,9.850953,134.26,134.21,9.850953]
[1763569584536,9.850953,134.26,134.21,10.510953]
[1763569584738,9.850953,134.26,134.22,0.66]
[1763569584930,0.69,134.35,134.22,2.46]
[1763569585243,9.850953,134.31,134.23,27.90978769]
[1763569585437,0.69,134.35,134.27,9.850953]
[1763569585942,9.850953,134.28,134.26,0.66]
[1763569586517,9.850953,134.27,134.23,1.8]
[1763569586821,9.850953,134.27,134.25,0.66]
[1763569587010,18.12096,134.33,134.25,0.66]
[1763569587011,9.850953,134.28,134.25,0.66]
[1763569587631,9.850953,134.29,134.25,0.66]
[1763569587836,9.850953,134.3,134.25,10.510953]
[1763569588039,9.850953,134.28,134.25,0.66]
[1763569588445,0.69,134.32,134.25,0.66]
[1763569588744,9.850953,134.26,134.23,0.66]
[1763569588957,18.12096,134.3,134.23,0.66]
[1763569589128,18.12096,134.3,134.23,10.510953]
[1763569589327,0.69,134.33,134.24,10.510953]
[1763569589542,9.850953,134.29,134.24,10.510953]
[1763569589742,9.850953,134.3,134.25,10.510953]
[1763569589925,9.850953,134.28,134.25,2.46]
[1763569590126,9.850953,134.28,134.26,0.66]
[1763569590326,0.69,134.32,134.26,0.66]
[1763569590627,9.850953,134.28,134.26,0.66]
[1763569590820,0.69,134.32,134.26,0.66]
[1763569591140,1.8,134.34,134.26,10.510953]
[1763569591325,0.69,134.34,134.26,0.66]
[1763569591523,9.850953,134.3,134.27,0.66]
[1763569591746,9.850953,134.29,134.27,0.66]
[1763569591928,9.850953,134.3,134.27,0.66]
[1763569592119,9.850953,134.31,134.27,0.66]
[1763569592467,9.850953,134.3,134.27,0.66]
[1763569592652,9.850953,134.28,134.21,0.66]
[1763569592824,0.69,134.29,134.22,0.66]
[1763569593144,9.850953,134.27,134.22,10.510953]
[1763569593360,9.850953,134.27,134.23,0.66]
[1763569593644,9.850953,134.29,134.24,9.850953]
[1763569593855,9.850953,134.28,134.24,62.1]
[1763569594023,9.850953,134.3,134.25,10.510953]
[1763569594416,9.850953,134.3,134.26,0.66]
[1763569595340,0.69,134.36,134.27,9.850953]
[1763569595558,2.61396191,134.37,134.27,9.850953]
[1763569595559,9.850953,134.32,134.27,9.850953]
[1763569595736,9.850953,134.31,134.28,0.66]
[1763569596058,9.850953,134.32,134.28,0.66]
[1763569596223,9.850953,134.32,134.28,2.46]
[1763569596622,0.69,134.35,134.29,0.66]
[1763569596863,9.850953,134.31,134.29,0.66]
[1763569597035,9.850953,134.31,134.29,62.76]
[1763569597355,9.850953,134.3,134.29,62.1]
[1763569597532,18.12096,134.34,134.29,62.1]
[1763569597735,9.850953,134.32,134.29,0.66]
[1763569597929,18.81096,134.36,134.3,0.66]
[1763569598126,9.850953,134.32,134.28,0.66]
[1763569598324,9.850953,134.34,134.29,9.850953]
[1763569598628,9.850953,134.35,134.3,9.850953]
[1763569598837,6.42129356,134.34,134.31,0.66]
[1763569599528,0.69,134.37,134.31,62.76]
[1763569599529,6.42129356,134.35,134.31,62.76]
[1763569600040,6.42129356,134.34,134.32,0.66]
[1763569600362,6.42129356,134.34,134.32,62.76]
[1763569600961,0.69,134.36,134.32,62.1]
[1763569601140,6.42129356,134.33,134.3,0.66]
[1763569601448,6.42129356,134.33,134.29,0.66]
[1763569601645,0.69,134.36,134.29,0.66]
[1763569601834,6.42129356,134.33,134.29,0.66]
[1763569603156,18.12096,134.37,134.28,1.8]
[1763569603457,6.42129356,134.32,134.29,0.66]
[1763569603627,0.69,134.35,134.29,0.66]
[1763569603833,6.42129356,134.33,134.29,0.66]
[1763569604144,0.2,134.4,134.29,62.76]
[1763569604335,6.42129356,134.36,134.32,6.42129356]
[1763569604652,0.89,134.4,134.31,6.42129356]
[1763569604842,6.42129356,134.36,134.32,0.66]
[1763569605046,6.42129356,134.35,134.32,0.66]
[1763569605358,6.42129356,134.34,134.32,62.76]
[1763569605861,6.42129356,134.35,134.33,0.66]
[1763569606070,0.69,134.34,134.29,62.1]
[1763569606357,6.42129356,134.3,134.26,23.2686348]
[1763569606530,6.42129356,134.28,134.26,0.66]
[1763569606930,18.81096,134.35,134.26,7.08129356]
[1763569607141,6.42129356,134.3,134.26,69.18129356]
[1763569607348,6.42129356,134.3,134.27,0.66]
[1763569607545,6.42129356,134.31,134.27,0.66]
[1763569608132,6.42129356,134.31,134.27,7.08129356]
[1763569608322,18.12096,134.35,134.27,7.08129356]
[1763569608526,18.81096,134.36,134.29,6.42129356]
[1763569608749,6.42129356,134.33,134.29,1.8]
[1763569608952,6.42129356,134.33,134.3,0.66]
[1763569609256,0.69,134.39,134.31,6.42129356]
[1763569609549,6.42129356,134.37,134.3,0.66]
[1763569609741,6.42129356,134.36,134.31,7.12129356]
[1763569609959,6.42129356,134.36,134.31,69.22129356]
[1763569610142,6.42129356,134.36,134.32,0.7]
[1763569610346,2.0,134.4,134.33,6.42129356]
[1763569610652,6.42129356,134.38,134.33,8.22129356]
[1763569610837,6.42129356,134.36,134.34,0.7]
[1763569611042,6.42129356,134.36,134.33,2.5]
[1763569611232,6.42129356,134.36,134.34,0.7]
[1763569611553,6.42129356,134.36,134.33,0.7]
[1763569611762,6.62129356,134.4,134.3,0.7]
[1763569612054,0.69,134.36,134.3,64.6]
[1763569612647,6.42129356,134.33,134.3,64.6]
[1763569613065,6.42129356,134.34,134.31,0.7]
[1763569613233,6.42129356,134.33,134.31,0.7]
[1763569613945,6.42129356,134.33,134.31,62.8]
[1763569614143,18.81096,134.37,134.28,62.8]
[1763569614144,6.42129356,134.32,134.28,62.8]
[1763569614338,6.42129356,134.29,134.28,62.1]
[1763569614730,6.42129356,134.31,134.28,62.8]
[1763569614941,6.42129356,134.31,134.29,0.7]
[1763569615534,6.42129356,134.33,134.29,0.7]
[1763569616057,6.42129356,134.33,134.27,9.24767538]
[1763569616058,6.42129356,134.31,134.27,1.8]
[1763569616257,6.42129356,134.31,134.29,0.7]
[1763569616768,18.12096,134.35,134.29,0.7]
[1763569616769,6.42129356,134.33,134.29,0.7]
[1763569617232,0.69,134.36,134.29,0.7]
[1763569617438,6.42129356,134.32,134.29,62.8]
[1763569617639,6.42129356,134.33,134.29,62.8]
[1763569617966,6.42129356,134.33,134.3,0.7]
[1763569618131,0.69,134.36,134.3,2.5]
[1763569618326,6.42129356,134.33,134.3,2.5]
[1763569618565,18.12096,134.37,134.33,62.1]
[1763569618748,6.42129356,134.36,134.33,62.1]
[1763569619153,6.42129356,134.36,134.33,62.8]
[1763569619847,18.12096,134.37,134.33,0.7]
[1763569619848,6.42129356,134.34,134.33,0.7]
[1763569620154,18.12096,134.37,134.33,0.7]
[1763569620355,6.42129356,134.35,134.33,62.8]
[1763569620539,6.42129356,134.36,134.33,62.8]
[1763569620953,6.42129356,134.35,134.33,62.8]
[1763569621145,6.42129356,134.34,134.33,62.1]
[1763569621352,18.81096,134.38,134.33,62.8]
[1763569621557,6.42129356,134.35,134.33,62.8]
[1763569622161,6.42129356,134.35,134.33,62.1]
[1763569622469,6.42129356,134.35,134.33,62.8]
[1763569623255,22.96000175,134.37,134.31,62.1]
[1763569623434,6.42129356,134.34,134.3,1.8]
[1763569623641,24.54225356,134.37,134.32,6.42129356]
[1763569623842,6.42129356,134.38,134.33,6.42129356]
[1763569624044,5.37597519,134.37,134.33,69.22129356]
[1763569624264,5.37597519,134.37,134.34,0.7]
[1763569624442,5.37597519,134.37,134.34,2.5]
[1763569624645,11.79726875,134.37,134.35,0.7]
[1763569624847,5.37597519,134.36,134.35,0.7]
[1763569625239,4.84848719,134.38,134.35,0.7]
[1763569625561,5.40386215,134.37,134.35,0.7]
[1763569625749,5.40386215,134.36,134.35,0.7]
[1763569626148,5.40386215,134.36,134.35,62.8]
[1763569626750,11.82515571,134.36,134.35,63.9]
[1763569627248,16.69518526,134.36,134.35,63.9]
[1763569627441,11.82515571,134.36,134.35,63.9]
[1763569627647,16.69518526,134.36,134.35,63.9]
[1763569627867,16.70925721,134.36,134.35,62.1]
[1763569628076,35.52021721,134.36,134.3,62.8]
[1763569628242,6.42129356,134.31,134.29,62.1]
[1763569628445,6.42129356,134.31,134.29,0.7]
[1763569629044,6.42129356,134.33,134.29,7.12129356]
[1763569629244,10.29785813,134.32,134.29,8.92129356]
[1763569629443,5.42088346,134.31,134.3,0.7]
[1763569630650,5.42088346,134.31,134.3,69.22129356]
[1763569630854,24.54225356,134.36,134.3,69.22129356]
[1763569631068,10.3072834,134.35,134.31,7.12129356]
[1763569631369,10.3072834,134.34,134.31,69.22129356]
[1763569631565,5.42581306,134.33,134.32,7.12129356]
[1763569631873,4.88439749,134.36,134.32,79.01012125]
[1763569632071,5.43062357,134.35,134.33,2.5]
[1763569632271,12.75414308,134.4,134.34,24.54225356]
[1763569632272,0.2,134.4,134.34,24.54225356]
[1763569632453,10.31136841,134.39,134.37,6.42129356]
[1763569632644,6.13284952,134.45,134.39,7.44102983]
[1763569632975,10.31589284,134.44,134.4,24.54225356]
[1763569633160,0.2,134.47,134.43,24.54225356]
[1763569633344,0.2,134.47,134.45,6.42129356]
[1763569633541,0.2,134.47,134.44,1.8]
[1763569633740,0.2,134.47,134.45,0.7]
[1763569633941,0.2,134.47,134.45,7.12129356]
[1763569634159,0.2,134.47,134.45,0.7]
[1763569634368,0.2,134.47,134.45,7.12129356]
[1763569634570,0.2,134.47,134.45,0.7]
[1763569634746,0.2,134.47,134.45,2.5]
[1763569635179,0.2,134.47,134.45,8.92129356]
[1763569635346,0.2,134.47,134.46,16.21012125]
[1763569635548,0.2,134.5,134.46,16.21012125]
[1763569635549,0.2,134.5,134.46,16.91012125]
[1763569635747,7.31129356,134.5,134.44,18.82096]
[1763569635947,6.62129356,134.5,134.46,6.42129356]
[1763569636146,0.2,134.5,134.45,2.5]
[1763569636376,6.62129356,134.5,134.46,7.12129356]
[1763569636553,0.2,134.5,134.47,8.22129356]
[1763569636762,0.2,134.5,134.47,8.92129356]
[1763569636966,0.2,134.5,134.49,6.42129356]
[1763569637263,0.2,134.5,134.49,16.91012125]
[1763569638767,0.2,134.5,134.49,24.34561831]
[1763569638965,0.2,134.5,134.49,10.48882769]
[1763569639476,0.2,134.5,134.49,18.71012125]
[1763569639656,0.2,134.5,134.49,26.14561831]
[1763569640170,0.2,134.5,134.49,16.91012125]
[1763569640373,0.2,134.5,134.49,18.71012125]
[1763569640677,0.2,134.5,134.47,0.65]
[1763569640881,0.2,134.5,134.48,1.8]
[1763569641591,0.2,134.5,134.47,6.42129356]
[1763569641765,0.2,134.5,134.45,9.78882769]
[1763569641766,7.28129356,134.5,134.45,0.65]
[1763569641970,6.42129356,134.47,134.4,0.65]
[1763569642278,6.42129356,134.47,134.42,6.42129356]
[1763569642584,6.42129356,134.47,134.4,2.45]
[1763569642896,0.66,134.48,134.41,0.65]
[1763569643374,0.2,134.5,134.42,9.78882769]
[1763569643579,6.42129356,134.49,134.44,6.42129356]
[1763569643772,6.42129356,134.48,134.44,1.8]
[1763569644154,7.08129356,134.48,134.44,1.8]
[1763569644594,0.66,134.47,134.42,6.42129356]
[1763569644756,6.42129356,134.46,134.43,1.8]
[1763569645293,6.42129356,134.45,134.41,1.8]
[1763569645599,18.79096,134.49,134.44,6.42129356]
[1763569645880,0.67,134.49,134.44,7.08129356]
[1763569646053,7.09129356,134.49,134.44,7.08129356]
[1763569646483,0.67,134.48,134.4,32.37488354]
[1763569646654,6.42129356,134.47,134.42,6.42129356]
[1763569646853,0.67,134.48,134.42,6.42129356]
[1763569647076,6.42129356,134.47,134.42,6.42129356]
[1763569647575,6.42129356,134.46,134.42,8.88129356]
[1763569647969,7.09129356,134.47,134.42,8.88129356]
[1763569648171,6.42129356,134.46,134.42,8.88129356]
[1763569648383,6.42129356,134.46,134.42,1.8]
[1763569648384,7.09129356,134.46,134.42,1.8]
[1763569648754,6.42129356,134.43,134.38,6.42129356]
[1763569648957,6.42129356,134.42,134.38,6.42129356]
[1763569649265,6.42129356,134.42,134.37,7.08129356]
[1763569649460,7.09129356,134.42,134.37,8.88129356]
[1763569650157,6.42129356,134.43,134.38,7.08129356]
[1763569650364,0.67,134.46,134.39,6.42129356]
[1763569650580,6.42129356,134.44,134.39,63.9]
[1763569650879,6.42129356,134.44,134.39,70.32129356]
[1763569651189,7.09129356,134.44,134.39,69.18129356]
[1763569651362,7.09129356,134.44,134.39,70.98129356]
[1763569651562,6.42129356,134.41,134.39,62.1]
[1763569651754,0.67,134.43,134.36,8.22129356]
[1763569651969,6.42129356,134.39,134.36,1.8]
[1763569652168,6.42129356,134.4,134.36,1.8]
[1763569652378,7.09129356,134.42,134.36,1.8]
[1763569652574,18.12096,134.44,134.36,1.8]
[1763569652575,6.42129356,134.4,134.36,1.8]
[1763569652878,6.42129356,134.39,134.36,1.8]
[1763569653880,7.09129356,134.4,134.36,1.8]
[1763569654112,18.79096,134.45,134.39,6.42129356]
[1763569654260,6.42129356,134.44,134.4,6.42129356]
[1763569654586,6.42129356,134.44,134.39,7.08129356]
[1763569654757,7.09129356,134.44,134.4,6.42129356]
[1763569655080,6.42129356,134.45,134.4,7.08129356]
[1763569655265,6.42129356,134.45,134.4,8.88129356]
[1763569655467,6.42129356,134.44,134.4,8.88129356]
[1763569655772,6.42129356,134.47,134.42,6.42129356]
[1763569655972,6.42129356,134.47,134.42,68.52129356]
[1763569656284,0.67,134.46,134.42,62.1]
[1763569656484,7.09129356,134.47,134.43,6.42129356]
[1763569656688,0.67,134.46,134.42,69.18129356]
[1763569656890,0.67,134.46,134.43,6.42129356]
[1763569657080,0.67,134.48,134.43,6.42129356]
[1763569657273,0.67,134.49,134.43,6.42129356]
[1763569657470,6.42129356,134.47,134.43,6.42129356]
[1763569657673,0.67,134.49,134.42,62.76]
[1763569657674,6.42129356,134.46,134.42,69.18129356]
[1763569658095,0.67,134.45,134.37,0.66]
[1763569658390,0.67,134.45,134.38,7.08129356]
[1763569658597,6.42129356,134.43,134.38,7.08129356]
[1763569658763,9.82616042,134.43,134.39,9.82616042]
[1763569658967,9.82616042,134.43,134.39,10.48616042]
[1763569659164,9.82616042,134.43,134.39,0.66]
[1763569659363,10.49616042,134.42,134.36,17.89102855]
[1763569659588,10.49616042,134.42,134.37,9.82616042]
[1763569660015,0.67,134.42,134.38,10.48616042]
[1763569660190,0.67,134.41,134.37,9.82616042]
[1763569660495,9.82616042,134.45,134.4,9.82616042]
[1763569660698,9.82616042,134.44,134.39,0.66]
[1763569660862,9.82616042,134.44,134.39,10.48616042]
[1763569661199,10.49616042,134.44,134.39,10.48616042]
[1763569661402,9.82616042,134.43,134.39,0.66]
[1763569661564,10.49616042,134.43,134.38,9.82616042]
[1763569661878,10.49616042,134.43,134.39,0.66]
[1763569662202,9.82616042,134.45,134.39,0.66]
[1763569662363,10.49616042,134.46,134.41,9.82616042]
[1763569662692,9.82616042,134.44,134.4,9.82616042]
[1763569662880,10.49616042,134.45,134.4,9.82616042]
[1763569663209,9.82616042,134.46,134.41,9.82616042]
[1763569663368,0.67,134.48,134.42,9.82616042]
[1763569663565,0.2,134.5,134.44,9.82616042]
[1763569663773,0.87,134.5,134.43,0.66]
[1763569664276,9.82616042,134.47,134.42,10.48616042]
[1763569664486,9.82616042,134.45,134.41,9.82616042]
[1763569664693,9.82616042,134.44,134.39,17.92717518]
[1763569665013,0.2,134.5,134.41,9.82616042]
[1763569665014,9.82616042,134.46,134.41,9.82616042]
[1763569665397,9.82616042,134.47,134.43,9.82616042]
[1763569665570,9.82616042,134.47,134.42,0.66]
[1763569665772,18.32096,134.5,134.43,9.82616042]
[1763569665982,9.82616042,134.48,134.43,9.82616042]
[1763569666181,10.49616042,134.48,134.43,10.48616042]
[1763569666401,18.32096,134.5,134.44,10.48616042]
[1763569666402,9.82616042,134.49,134.44,10.48616042]
[1763569666595,9.82616042,134.49,134.45,9.82616042]
[1763569666792,10.02616042,134.5,134.45,10.48616042]
[1763569666988,10.02616042,134.5,134.46,10.48616042]
[1763569667379,0.67,134.49,134.45,9.82616042]
[1763569667588,0.67,134.49,134.43,71.92616042]
[1763569667895,0.67,134.49,134.41,80.22096]
[1763569668099,9.82616042,134.44,134.41,62.1]
[1763569668306,9.82616042,134.43,134.41,62.1]
[1763569668668,9.82616042,134.44,134.41,62.1]
[1763569669484,10.49616042,134.45,134.41,62.1]
[1763569669689,0.67,134.45,134.41,62.1]
[1763569669896,9.82616042,134.44,134.41,62.1]
[1763569670567,9.82616042,134.44,134.41,62.8]
[1763569670772,18.12096,134.47,134.42,10.52616042]
[1763569670991,9.82616042,134.45,134.42,0.7]
[1763569671801,10.50616042,134.44,134.41,62.1]
[1763569672009,10.50616042,134.44,134.4,9.78882769]
[1763569672214,10.50616042,134.44,134.4,10.48882769]
[1763569672584,9.82616042,134.43,134.4,62.1]
[1763569672916,18.80096,134.47,134.41,0.7]
[1763569673122,9.82616042,134.45,134.41,0.7]
[1763569673285,9.82616042,134.45,134.41,10.52616042]
[1763569673490,9.82616042,134.45,134.41,0.7]
[1763569673817,9.82616042,134.45,134.42,0.7]
[1763569673990,9.82616042,134.46,134.42,0.7]
[1763569674385,9.82616042,134.44,134.4,9.78882769]
[1763569674597,0.68,134.45,134.4,27.75542393]
[1763569674799,9.82616042,134.45,134.41,0.7]
[1763569675108,9.82616042,134.45,134.38,69.54135494]
[1763569675109,9.82616042,134.43,134.38,69.54135494]
[1763569675307,18.12096,134.47,134.38,62.1]
[1763569675308,9.82616042,134.42,134.38,62.1]
[1763569675490,9.82616042,134.42,134.38,62.8]
[1763569676099,0.68,134.44,134.38,79.36766845]
[1763569676413,9.82616042,134.42,134.38,80.06766845]
[1763569676909,0.68,134.44,134.38,80.06766845]
[1763569677085,9.82616042,134.42,134.38,80.06766845]
[1763569677289,9.82616042,134.43,134.38,80.06766845]
[1763569677788,18.12096,134.47,134.39,0.7]
[1763569677984,9.82616042,134.42,134.39,62.8]
[1763569678429,9.82616042,134.4,134.39,62.1]
[1763569678792,10.50616042,134.4,134.39,62.1]
[1763569679213,10.50616042,134.4,134.34,62.1]
[1763569679414,9.82616042,134.36,134.32,62.8]
[1763569679715,9.82616042,134.35,134.32,0.7]
[1763569680525,18.12096,134.39,134.32,10.52616042]
[1763569680699,9.82616042,134.37,134.33,9.82616042]
[1763569680898,18.12096,134.39,134.38,52.27383958]
[1763569680899,18.80096,134.39,134.38,52.27383958]
[1763569681101,28.62712042,134.39,134.38,52.27383958]
[1763569681914,33.51054671,134.39,134.38,52.27383958]
[1763569682218,43.2993744,134.39,134.38,52.27383958]
[1763569682419,33.51054671,134.39,134.38,52.27383958]
[1763569682722,14.41916791,134.45,134.38,52.27383958]
[1763569682909,9.82616042,134.39,134.38,52.27383958]
[1763569683793,16.4578231,134.49,134.38,52.27383958]
[1763569683794,9.82616042,134.43,134.38,62.8]
[1763569684202,4.89368955,134.47,134.39,10.52616042]
[1763569684203,9.82616042,134.44,134.39,10.52616042]
[1763569684403,9.82616042,134.43,134.39,10.52616042]
[1763569684693,9.82616042,134.45,134.4,10.52616042]
[1763569685033,9.82616042,134.45,134.41,0.7]
[1763569685407,9.82616042,134.44,134.41,0.7]
[1763569685601,4.90272452,134.49,134.43,9.82616042]
[1763569685602,0.68,134.49,134.43,9.82616042]
[1763569685804,9.82616042,134.48,134.43,9.82616042]
[1763569686005,9.82616042,134.48,134.43,10.52616042]
[1763569686317,9.82616042,134.48,134.44,10.52616042]
[1763569686719,9.82616042,134.48,134.44,0.7]
[1763569687412,10.50616042,134.48,134.43,9.82616042]
[1763569687604,10.50616042,134.48,134.43,10.52616042]
[1763569687800,9.82616042,134.44,134.39,22.81252796]
[1763569687994,9.82616042,134.43,134.39,0.7]
[1763569688190,9.82616042,134.43,134.39,18.82096]
[1763569688821,9.82616042,134.43,134.4,0.7]
[1763569689119,9.82616042,134.43,134.39,28.64712042]
[1763569689295,9.82616042,134.44,134.4,0.7]
[1763569689494,9.82616042,134.44,134.4,62.8]
[1763569689714,9.82616042,134.46,134.41,10.52616042]